fUST/lending_fUST_20241218
["ID","MTS","AMOUNT","RATE_DAILY","PERIOD"]
[345807633,1734487849544,-500.0,0.00025479,6]
[345807634,1734487849554,-1717.9,0.00025479,6]
[345807635,1734487849564,-500.0,0.00025479,6]
[345807636,1734487849574,-553.14,0.00025479,6]
[345807637,1734487849584,-500.0,0.00025479,6]
[345807638,1734487849594,-500.0,0.00025479,6]
[345807639,1734487849604,-500.0,0.00025479,6]
[345807640,1734487849613,-500.0,0.00025479,6]
[345807641,1734487849621,-562.39,0.00025479,6]
[345807642,1734487849631,-2767.71,0.00025479,6]
[345807643,1734487849640,-500.0,0.00025479,6]
[345807644,1734487849650,-659.05,0.00025479,6]
[345807645,1734487849660,-500.0,0.00025479,6]
[345807646,1734487849669,-1345.18,0.00025479,6]
[345807647,1734487849679,-570.93,0.00025479,6]
[345807648,1734487849688,-1451.61,0.00025479,6]
[345807649,1734487849698,-501.13,0.00025479,6]
[345807650,1734487849708,-728.83,0.00025479,6]
[345807651,1734487849717,-500.0,0.00025479,6]
[345807652,1734487849726,-500.0,0.00025479,6]
[345807653,1734487849736,-500.0,0.00025479,6]
[345807654,1734487849747,-3100.2,0.00025479,2]
[345807655,1734487849757,-532.53185201,0.00025479,6]
[345807656,1734487849766,-500.0,0.00025479,6]
[345807657,1734487849778,-500.0,0.00025479,6]
[345807658,1734487849787,-671.9,0.00025479,6]
[345807659,1734487849797,-514.50182301,0.00025479,6]
[345807660,1734487849807,-510.08,0.00025479,6]
[345807661,1734487849817,-500.0,0.00025479,6]
[345807662,1734487849826,-500.0,0.00025479,6]
[345807663,1734487849835,-500.0,0.00025479,6]
[345807664,1734487849845,-500.0,0.00025479,6]
[345807665,1734487849854,-500.0,0.00025479,6]
[345807666,1734487849864,-500.0,0.00025479,6]
[345807667,1734487849873,-370.64515916,0.00025479,6]
[345807668,1734487850017,-791.18484084,0.00025479,6]
[345807669,1734487850029,-500.0,0.00025479,6]
[345807670,1734487850039,-1023.12,0.00025479,6]
[345807671,1734487850049,-500.0,0.00025479,6]
[345807672,1734487850058,-500.0,0.00025479,6]
[345807673,1734487850068,-500.0,0.00025479,6]
[345807674,1734487850077,-471.91246795,0.00025479,6]
[345807677,1734488292074,221.312779,0.00013973,2]
[345807679,1734488493158,13790.13236691,0.00025569,120]
[345807680,1734488506196,24429.21596239,0.0002556,120]
[345807683,1734488629334,1000.0,0.00025,120]
[345807875,1734489039833,-221.312779,0.00020447,2]
[345807877,1734489039844,-353.77125045,0.00021,5]
[345807936,1734489040394,-8.80386986,0.00021,5]
[345807938,1734489040404,-493.99077948,0.00023,2]
[345808252,1734489597152,239.181501,0.00013973,2]
[345808289,1734490232307,-475.6849535,0.00020347,2]
[345808290,1734490232318,-239.181501,0.00020447,2]
[345808291,1734490232328,-152.0,0.00022,2]
[345808292,1734490232338,-234.600292,0.00022114,2]
[345808293,1734490232347,-173.698686,0.00022293,2]
[345808294,1734490232357,-300.0,0.00023354,2]
[345808295,1734490232367,-300.0,0.00023354,2]
[345808296,1734490232376,-29769.73475334,0.00023355,2]
[345808319,1734490232610,-566.0103274,0.00023355,2]
[345808578,1734490240178,-58050.0,0.00023355,2]
[345808629,1734490577415,283.304066,0.00013973,2]
[345808650,1734491432827,-283.304066,0.00020447,2]
[345808651,1734491432838,-225.000213,0.00021539,2]
[345808652,1734491432849,-221.76890455,0.00021544,2]
[345808653,1734491432859,-4527.9713718,0.00021561,2]
[345808654,1734491432869,-170.1748122,0.00021644,2]
[345808655,1734491432879,-162.97286763,0.000219,2]
[345808656,1734491432893,-151.0,0.00022,2]
[345808657,1734491432903,-250.5256099,0.0002222,2]
[345808658,1734491432913,-179.25,0.00022512,2]
[345808659,1734491432923,-300.0,0.00022522,2]
[345808660,1734491432933,-300.0,0.00022522,2]
[345808661,1734491432943,-5030.68608958,0.00022523,2]
[345808662,1734491432955,-263.0,0.00022523,2]
[345808663,1734491433110,-2099.87001014,0.00022523,2]
[345808664,1734491433123,-862.1506412,0.00022523,2]
[345808665,1734491433135,-421.49265646,0.00022523,2]
[345808673,1734491440710,-1153.346855,0.00022523,2]
[345808691,1734491443435,-1556.09684413,0.00022523,2]
[345808695,1734491443694,-499.9967325,0.00022523,2]
[345808742,1734491446607,-5033.14772647,0.00022523,2]
[345808744,1734491446619,-7980.21244452,0.00022523,2]
[345808746,1734491446629,-4788.38600526,0.00023456,2]
[345808748,1734491446641,-8956.04103983,0.00023456,2]
[345808751,1734491446653,-2702.09994305,0.00023456,2]
[345808753,1734491446663,-855.53184665,0.00023456,2]
[345808787,1734491480211,314.97366,0.00013973,2]
[345808789,1734491703898,1421.0,0.0002,3]
[345808790,1734491704216,1421.0,0.0002,3]
[345808791,1734491704630,1421.0,0.0002,3]
[345808792,1734491704956,1421.0,0.0002,3]
[345808793,1734491709136,3826.0,0.0002,3]
[345808794,1734491709435,3821.0,0.0002,3]
[345808795,1734491709724,3821.0,0.0002,3]
[345808796,1734491710057,3821.0,0.0002,3]
[345808797,1734491710398,3821.0,0.0002,3]
[345808798,1734491710685,3821.0,0.0002,3]
[345808801,1734492206291,650.0,0.0002556,120]
[345808805,1734492370487,317.539586,0.00013973,2]
[345808806,1734492497973,409.62728902,0.000125,2]
[345808807,1734492508528,9061.57963167,0.0002,2]
[345808808,1734492518407,352.93845187,0.0002,2]
[345808816,1734492520783,1000.0,0.0001,2]
[345808838,1734492632651,-317.539586,0.00020447,2]
[345808839,1734492632662,-287.1198277,0.00021001,11]
[345808840,1734492632671,-177.22375,0.00021503,2]
[345808841,1734492632681,-300.0,0.00021644,2]
[345808843,1734492632690,-300.0,0.00021644,2]
[345808845,1734492632700,-7865.66821319,0.00021645,2]
[345808847,1734492632712,-655.78218305,0.00021645,2]
[345808850,1734492632724,-12313.59113486,0.00021645,2]
[345808857,1734492632786,-1608.35328949,0.00021645,2]
[345808860,1734492632798,-2456.60517941,0.00021645,2]
[345808862,1734492632807,-193.769191,0.00021936,2]
[345808864,1734492632818,-151.0,0.00022,2]
[345808866,1734492632829,-5163.78649432,0.00022221,2]
[345808868,1734492632839,-454.706,0.0002229,2]
[345808870,1734492632850,-184.73,0.00022519,2]
[345808872,1734492632861,-8850.08465427,0.00022678,2]
[345808874,1734492632871,-8850.08465427,0.00022941,2]
[345808876,1734492632880,-8850.08465427,0.0002304,2]
[345808878,1734492632889,-276.7219206,0.00023205,2]
[345808879,1734492632904,-177.2600246,0.00023221,2]
[345808881,1734492632913,-151.0,0.00023378,7]
[345808883,1734492632922,-154.20328,0.00023378,7]
[345808885,1734492632933,-158.653639,0.00023378,7]
[345808886,1734492632942,-169.062009,0.00023378,7]
[345808888,1734492632951,-151.0,0.00023378,7]
[345808890,1734492632960,-151.0,0.00023378,7]
[345808892,1734492632970,-162.086678,0.00023378,7]
[345808893,1734492632979,-360.542456,0.00023378,7]
[345808895,1734492632988,-360.542456,0.00023378,7]
[345808897,1734492632997,-360.542456,0.00023378,7]
[345808898,1734492633007,-360.542456,0.00023378,7]
[345808900,1734492633016,-151.0,0.00023378,7]
[345808902,1734492633026,-151.0,0.00023378,7]
[345808904,1734492633035,-151.0,0.00023378,7]
[345808905,1734492633044,-160.731686,0.00023378,7]
[345808907,1734492633054,-5163.78649432,0.00023378,7]
[345808909,1734492633064,-1206.339591,0.00023378,7]
[345808911,1734492633073,-155.359273,0.00023378,7]
[345808913,1734492633083,-1206.339591,0.00023378,7]
[345808914,1734492633093,-1206.339591,0.00023378,7]
[345808916,1734492633104,-1206.339591,0.00023378,7]
[345808918,1734492633114,-3523.75597994,0.00023384,2]
[345808920,1734492633126,-20789.89477476,0.00023384,2]
[345808970,1734492639451,-369.99999999,0.00023384,2]
[345808976,1734492639496,-22094.67499538,0.00023384,2]
[345812926,1734493265850,320.468161,0.00013973,2]
[345812930,1734493612145,2411.57573302,0.0002,2]
[345812950,1734493833037,-263.01453264,0.00020447,2]
[345812951,1734493833050,-57.45362836,0.00020447,2]
[345812952,1734493833060,-3901.44356364,0.00021496,2]
[345812953,1734493833341,-864.828225,0.00021496,2]
[345812954,1734493833351,-17.6755526,0.00021516,2]
[345812955,1734493833364,-1663.56302835,0.00021516,2]
[345812956,1734493833373,-300.0,0.0002219,2]
[345812957,1734493833383,-415.93695565,0.00022191,2]
[345812979,1734493839875,-917.93173722,0.00022191,2]
[345812983,1734493841062,-405.09600012,0.00022191,2]
[345812984,1734493841074,-10478.0,0.00022191,2]
[345813012,1734493844051,-1809.88486945,0.00022191,2]
[345813013,1734493844061,-15064.1515711,0.00022194,2]
[345813015,1734493844070,-435.888,0.0002229,2]
[345813016,1734493844080,-193.7691912,0.00022413,2]
[345813017,1734493844089,-177.2600247,0.00023221,2]
[345813018,1734493844098,-500.0,0.00023355,2]
[345813019,1734493844108,-397.2358,0.00023378,7]
[345813020,1734493844118,-190.37322474,0.00023455,2]
[345813021,1734493844127,-4392.92417916,0.00023456,2]
[345813043,1734494146616,336.270689,0.00013973,2]
[345813044,1734494551302,300.0,0.0002,2]
[345813050,1734494966014,2281.0,0.0002,2]
[345813069,1734495035993,-336.270689,0.00020447,2]
[345813070,1734495036002,-300.0,0.00022,5]
[345813071,1734495036012,-151.0,0.00022,2]
[345813072,1734495036022,-177.22375,0.00022157,2]
[345813073,1734495036031,-300.0,0.00022225,2]
[345813074,1734495036041,-1489.70225479,0.00022226,2]
[345813075,1734495036053,-1566.54940428,0.00022226,2]
[345813076,1734495036064,-17293.75800193,0.00022226,2]
[345813077,1734495036077,-443.172,0.0002229,2]
[345813078,1734495036087,-3000.0,0.00023,2]
[345813079,1734495036098,-300.0,0.00023,7]
[345813080,1734495036107,-273.87357664,0.00023,8]
[345813081,1734495036117,-216.0,0.0002333,10]
[345813082,1734495036127,-151.0,0.00023347,2]
[345813083,1734495036136,-151.0,0.00023347,2]
[345813084,1734495036146,-151.0,0.00023347,2]
[345813085,1734495036156,-151.0,0.00023347,2]
[345813086,1734495036165,-151.0,0.00023347,2]
[345813087,1734495036175,-151.0,0.00023347,2]
[345813088,1734495036185,-151.0,0.00023347,2]
[345813089,1734495036194,-151.0,0.00023347,2]
[345813090,1734495036203,-151.0,0.00023347,2]
[345813091,1734495036212,-151.0,0.00023347,2]
[345813092,1734495036222,-151.0,0.00023347,2]
[345813093,1734495036232,-151.0,0.00023347,2]
[345813094,1734495036242,-151.0,0.00023347,2]
[345813095,1734495036252,-151.0,0.00023347,2]
[345813096,1734495036262,-151.0,0.00023347,2]
[345813097,1734495036271,-151.0,0.00023347,2]
[345813098,1734495036281,-151.0,0.00023347,2]
[345813099,1734495036290,-151.0,0.00023347,2]
[345813100,1734495036299,-151.0,0.00023347,2]
[345813101,1734495036309,-151.0,0.00023347,2]
[345813102,1734495036318,-151.0,0.00023347,2]
[345813103,1734495036330,-151.0,0.00023347,2]
[345813104,1734495036339,-151.0,0.00023347,2]
[345813105,1734495036349,-151.0,0.00023347,2]
[345813106,1734495036358,-151.0,0.00023347,2]
[345813107,1734495036367,-151.0,0.00023347,2]
[345813108,1734495036377,-151.0,0.00023347,2]
[345813109,1734495036386,-151.0,0.00023347,2]
[345813110,1734495036395,-151.0,0.00023347,2]
[345813111,1734495036404,-151.0,0.00023347,2]
[345813112,1734495036414,-151.0,0.00023347,2]
[345813113,1734495036425,-151.0,0.00023347,2]
[345813114,1734495036435,-151.0,0.00023347,2]
[345813115,1734495036446,-151.0,0.00023347,2]
[345813116,1734495036456,-151.0,0.00023347,2]
[345813117,1734495036466,-151.0,0.00023347,2]
[345813118,1734495036476,-151.0,0.00023347,2]
[345813119,1734495036485,-151.0,0.00023347,2]
[345813120,1734495036495,-151.0,0.00023347,2]
[345813121,1734495036505,-151.0,0.00023347,2]
[345813122,1734495036515,-151.0,0.00023347,2]
[345813123,1734495036525,-166.01,0.00023347,2]
[345813124,1734495036534,-158.64435395,0.00023455,2]
[345813125,1734495036543,-67502.39182841,0.00023456,2]
[345813126,1734495036552,-7377.85137601,0.00023456,2]
[345813127,1734495036562,-82454.0,0.00023456,6]
[345813128,1734495036571,-250.96049593,0.00023456,2]
[345813129,1734495036582,-397.2358,0.00023456,7]
[345813130,1734495036592,-151.0,0.00023456,7]
[345813131,1734495036602,-158.986462,0.00023456,7]
[345813132,1734495036629,-151.0,0.00023456,7]
[345813133,1734495036641,-6008.82739084,0.00023544,2]
[345813134,1734495036651,-532.14213893,0.000238,2]
[345813135,1734495036662,-364.0,0.000239,11]
[345813136,1734495036672,-965.071673,0.00023989,7]
[345813137,1734495036682,-965.071673,0.00023989,7]
[345813138,1734495036692,-965.071673,0.00023989,7]
[345813139,1734495036703,-965.071673,0.00023989,7]
[345813140,1734495036713,-151.0,0.00023989,7]
[345813141,1734495036723,-151.0,0.00023989,7]
[345813142,1734495036733,-151.0,0.00023989,7]
[345813143,1734495036743,-151.0,0.00023989,7]
[345813144,1734495036753,-373.57076221,0.00023989,2]
[345813145,1734495036763,-500.0,0.00023989,2]
[345813146,1734495036773,-166.37502689,0.00023989,2]
[345813147,1734495036783,-500.0,0.00023989,2]
[345813148,1734495036793,-500.0,0.00023989,2]
[345813149,1734495036805,-368.62744674,0.00023989,2]
[345813150,1734495036815,-241.13279836,0.00023989,2]
[345813151,1734495036827,-500.0,0.00023989,2]
[345813152,1734495036837,-500.0,0.00023989,2]
[345813153,1734495036850,-500.0,0.00023989,2]
[345813154,1734495036860,-500.0,0.00023989,2]
[345813155,1734495036870,-500.0,0.00023989,2]
[345813156,1734495036880,-500.0,0.00023989,2]
[345813157,1734495036890,-500.0,0.00023989,2]
[345813158,1734495036900,-500.0,0.00023989,2]
[345813159,1734495036910,-617.42717159,0.00023989,2]
[345813160,1734495036920,-500.0,0.00023989,2]
[345813161,1734495036930,-500.0,0.00023989,2]
[345813162,1734495036941,-500.0,0.00023989,2]
[345813163,1734495036951,-500.0,0.00023989,2]
[345813164,1734495036962,-500.0,0.00023989,2]
[345813165,1734495036972,-500.0,0.00023989,2]
[345813166,1734495036984,-500.0,0.00023989,2]
[345813167,1734495036994,-500.0,0.00023989,2]
[345813168,1734495037004,-117.72667754,0.00023989,2]
[345813169,1734495037025,-382.27332246,0.00023989,2]
[345813170,1734495037035,-251.63375553,0.00023989,2]
[345813171,1734495037048,-248.36624447,0.00023989,2]
[345813172,1734495037058,-308.49675298,0.00023989,2]
[345813173,1734495037071,-191.50324702,0.00023989,2]
[345813174,1734495037084,-365.3619694,0.00023989,2]
[345813224,1734495038899,-1865.78657614,0.00023247,2]
[345813226,1734495038910,-81.37243171,0.00023989,2]
[345813227,1734495038920,-500.0,0.00023989,2]
[345813228,1734495038929,-500.0,0.00023989,2]
[345813229,1734495038939,-422.51979634,0.00023989,2]
[345813230,1734495038949,-500.0,0.00023989,2]
[345813231,1734495038959,-500.0,0.00023989,2]
[345813232,1734495038969,-554.65242937,0.00023989,2]
[345813233,1734495038980,-500.0,0.00023989,2]
[345813234,1734495038989,-500.0,0.00023989,2]
[345813235,1734495038999,-500.0,0.00023989,2]
[345813236,1734495039009,-9078.60073864,0.0002399,2]
[345813259,1734495040789,-559.20635901,0.0002399,2]
[345813332,1734495043993,-313.56,0.00023695,2]
[345813369,1734495046755,-1552.22657612,0.00023695,2]
[345813371,1734495046766,-2627.77342388,0.0002399,2]
[345814591,1734495117016,332.159766,0.00013973,2]
[345814593,1734495765465,500.0,0.00019752,2]
[345814595,1734495786630,500.0,0.00018764,2]
[345814596,1734495807803,500.0,0.00018018,2]
[345814597,1734495828916,500.0,0.00018018,2]
[345814600,1734495851149,500.0,0.00018018,2]
[345814601,1734495872427,500.0,0.00018018,2]
[345814602,1734495894038,500.0,0.00018018,2]
[345814628,1734496123390,1037.63089218,0.000199,3]
[345814652,1734496183032,610.10809921,0.0002,2]
[345814697,1734496235630,-893.0,0.00020447,2]
[345814699,1734496235641,-332.159766,0.00020447,2]
[345814701,1734496235650,-230.640234,0.00020791,2]
[345814703,1734496235662,-259.95,0.00020791,2]
[345814706,1734496235674,-9.409766,0.00020791,2]
[345814707,1734496235683,-500.0,0.00021885,2]
[345814709,1734496235693,-1420.01074732,0.00022,2]
[345814710,1734496235702,-306.0781784,0.00022418,2]
[345814712,1734496235712,-424.419,0.0002279,2]
[345814714,1734496235721,-174.7492,0.00022943,2]
[345814715,1734496235731,-500.0,0.0002298,2]
[345814716,1734496235740,-1707.2801092,0.00023874,2]
[345814717,1734496235749,-151.0,0.00023989,2]
[345814718,1734496235759,-300.0,0.00023989,2]
[345814719,1734496235771,-300.0,0.00023989,2]
[345814720,1734496235780,-17618.74163412,0.0002399,2]
[345814721,1734496235789,-397.2358,0.0002399,7]
[345814722,1734496235799,-3000.0,0.00024,2]
[345814723,1734496235808,-509.91458408,0.00024,2]
[345814724,1734496235818,-569.0,0.00024,2]
[345814725,1734496235828,-1399.33993209,0.00024079,2]
[345814726,1734496235837,-151.0,0.0002409,6]
[345814727,1734496235846,-500.0,0.00024129,2]
[345814729,1734496235856,-2772.8,0.00024179,15]
[345814730,1734496235865,-218.0,0.0002427,13]
[345814732,1734496235874,-151.0,0.00024349,6]
[345814734,1734496235883,-1399.33993209,0.00024407,2]
[345814735,1734496235893,-569.0,0.00024439,2]
[345814736,1734496235902,-6688.99,0.0002448,5]
[345814737,1734496235912,-5678.788,0.0002448,3]
[345814738,1734496235921,-2732.33461765,0.0002448,2]
[345814739,1734496235931,-1005.0,0.000245,2]
[345814740,1734496235941,-397.2358,0.00024557,3]
[345814741,1734496235950,-151.0,0.00024608,6]
[345814742,1734496235959,-156.89129865,0.00024616,2]
[345814743,1734496235969,-2075.26962284,0.00024655,5]
[345814744,1734496235978,-4063.83,0.00024656,2]
[345814745,1734496235988,-457.49190795,0.00024656,2]
[345814746,1734496235998,-602.50219959,0.00024656,2]
[345814747,1734496236008,-450.5169366,0.00024656,2]
[345814748,1734496236019,-327.41493346,0.00024656,2]
[345814749,1734496236028,-33751.19591421,0.00024657,2]
[345814750,1734496236038,-3688.92568801,0.00024657,2]
[345814751,1734496236047,-500.0,0.00024657,6]
[345814752,1734496236060,-500.0,0.00024657,6]
[345814753,1734496236070,-500.0,0.00024657,6]
[345814754,1734496236079,-500.0,0.00024657,6]
[345814755,1734496236090,-500.0,0.00024657,6]
[345814756,1734496236099,-500.0,0.00024657,6]
[345814757,1734496236109,-500.0,0.00024657,6]
[345814758,1734496236119,-500.0,0.00024657,6]
[345814759,1734496236132,-500.0,0.00024657,6]
[345814760,1734496236142,-500.0,0.00024657,6]
[345814761,1734496236152,-500.0,0.00024657,6]
[345814762,1734496236162,-500.0,0.00024657,6]
[345814763,1734496236171,-500.0,0.00024657,6]
[345814764,1734496236181,-214.5833896,0.00024657,6]
[345814765,1734496236190,-539.27315349,0.00024657,6]
[345814766,1734496236201,-500.0,0.00024657,6]
[345814767,1734496236210,-500.0,0.00024657,6]
[345814768,1734496236220,-500.0,0.00024657,6]
[345814769,1734496236231,-535.76437122,0.00024657,6]
[345814770,1734496236240,-500.0,0.00024657,6]
[345814771,1734496236249,-500.0,0.00024657,6]
[345814772,1734496236259,-288.433965,0.00024657,7]
[345814773,1734496236271,-288.433965,0.00024657,7]
[345814774,1734496236280,-288.433965,0.00024657,7]
[345814775,1734496236290,-288.433965,0.00024657,7]
[345814776,1734496236299,-288.433965,0.00024657,7]
[345814777,1734496236309,-288.433965,0.00024657,7]
[345814778,1734496236319,-288.433965,0.00024657,7]
[345814779,1734496236328,-288.433965,0.00024657,7]
[345814780,1734496236337,-288.433965,0.00024657,7]
[345814781,1734496236347,-288.433965,0.00024657,7]
[345814782,1734496236357,-500.0,0.00024657,6]
[345814783,1734496236366,-288.433965,0.00024657,7]
[345814784,1734496236376,-288.433965,0.00024657,7]
[345814785,1734496236385,-288.433965,0.00024657,7]
[345814786,1734496236395,-288.433965,0.00024657,7]
[345814787,1734496236404,-288.433965,0.00024657,7]
[345814788,1734496236414,-288.433965,0.00024657,7]
[345814789,1734496236424,-288.433965,0.00024657,7]
[345814790,1734496236433,-288.433965,0.00024657,7]
[345814791,1734496236443,-288.433965,0.00024657,7]
[345814792,1734496236452,-288.433966,0.00024657,7]
[345814793,1734496236462,-200.0,0.00024657,6]
[345814794,1734496236472,-394.51012099,0.00024657,6]
[345814795,1734496236482,-500.0,0.00024657,6]
[345814796,1734496236491,-505.68651064,0.00024657,6]
[345814797,1734496236501,-500.0,0.00024657,6]
[345814798,1734496236511,-500.0,0.00024657,6]
[345814799,1734496236522,-500.0,0.00024657,6]
[345814800,1734496236532,-500.0,0.00024657,6]
[345814801,1734496236541,-500.0,0.00024657,6]
[345814802,1734496236551,-500.0,0.00024657,6]
[345814803,1734496236561,-500.0,0.00024657,6]
[345814804,1734496236570,-500.0,0.00024657,6]
[345814805,1734496236580,-500.0,0.00024657,6]
[345814806,1734496236590,-500.0,0.00024657,6]
[345814807,1734496236600,-500.0,0.00024657,6]
[345814808,1734496236610,-500.0,0.00024657,6]
[345814809,1734496236619,-500.0,0.00024657,6]
[345814810,1734496236629,-500.0,0.00024657,6]
[345814811,1734496236638,-500.0,0.00024657,6]
[345814812,1734496236648,-500.0,0.00024657,6]
[345814813,1734496236658,-468.07742381,0.00024657,6]
[345814814,1734496236667,-500.0,0.00024657,6]
[345814815,1734496236677,-504.38422713,0.00024657,6]
[345814816,1734496236686,-500.0,0.00024657,6]
[345814817,1734496236696,-500.0,0.00024657,6]
[345814818,1734496236707,-500.0,0.00024657,6]
[345814819,1734496236716,-501.14766702,0.00024657,6]
[345814820,1734496236727,-500.0,0.00024657,6]
[345814821,1734496236737,-500.0,0.00024657,6]
[345814822,1734496236746,-500.0,0.00024657,6]
[345814823,1734496236756,-500.0,0.00024657,6]
[345814824,1734496236768,-500.0,0.00024657,6]
[345814825,1734496236779,-500.0,0.00024657,6]
[345814826,1734496236789,-518.52,0.00024657,6]
[345814827,1734496236798,-500.0,0.00024657,6]
[345814828,1734496236808,-500.0,0.00024657,6]
[345814829,1734496236817,-500.0,0.00024657,6]
[345814830,1734496236827,-500.0,0.00024657,6]
[345814831,1734496236837,-500.0,0.00024657,6]
[345814832,1734496236847,-644.85720975,0.00024657,6]
[345814833,1734496236857,-500.0,0.00024657,6]
[345814834,1734496236866,-500.0,0.00024657,6]
[345814835,1734496236876,-151.0,0.00024657,7]
[345814836,1734496236885,-151.0,0.00024657,7]
[345814837,1734496236895,-151.0,0.00024657,7]
[345814838,1734496236905,-500.0,0.00024657,6]
[345814839,1734496236914,-151.0,0.00024657,7]
[345814840,1734496236924,-151.0,0.00024657,7]
[345814841,1734496236934,-151.0,0.00024657,7]
[345814842,1734496236943,-151.0,0.00024657,7]
[345814843,1734496236953,-151.0,0.00024657,7]
[345814844,1734496236963,-500.0,0.00024657,6]
[345814845,1734496236973,-151.0,0.00024657,7]
[345814846,1734496236983,-151.0,0.00024657,7]
[345814847,1734496236993,-250.933857,0.00024657,7]
[345814848,1734496237003,-500.0,0.00024657,6]
[345814849,1734496237013,-500.0,0.00024657,6]
[345814850,1734496237028,-500.0,0.00024657,6]
[345814851,1734496237043,-500.0,0.00024657,6]
[345814852,1734496237058,-500.0,0.00024657,6]
[345814853,1734496237068,-500.0,0.00024657,6]
[345814854,1734496237078,-171.03328813,0.00024657,6]
[345814855,1734496237087,-500.0,0.00024657,6]
[345814856,1734496237097,-1867.61,0.00024657,6]
[345814857,1734496237107,-500.0,0.00024657,6]
[345814858,1734496237117,-500.0,0.00024657,6]
[345814859,1734496237126,-500.0,0.00024657,6]
[345814860,1734496237136,-500.0,0.00024657,6]
[345814861,1734496237146,-500.0,0.00024657,6]
[345814862,1734496237155,-791.94,0.00024657,6]
[345814863,1734496237165,-500.0,0.00024657,6]
[345814864,1734496237175,-457.35121646,0.00024657,6]
[345814865,1734496237184,-500.0,0.00024657,6]
[345814866,1734496237195,-500.0,0.00024657,6]
[345814867,1734496237206,-500.0,0.00024657,6]
[345814868,1734496237217,-500.0,0.00024657,6]
[345814869,1734496237227,-500.0,0.00024657,6]
[345814870,1734496237237,-152.71881673,0.00024657,6]
[345814871,1734496237246,-266.06824983,0.00024657,6]
[345814872,1734496237255,-500.0,0.00024657,6]
[345814873,1734496237270,-500.0,0.00024657,6]
[345814875,1734496237279,-500.0,0.00024657,6]
[345814877,1734496237290,-503.47126677,0.00024657,6]
[345814878,1734496237299,-575.25,0.00024657,6]
[345814880,1734496237309,-582.43413082,0.00024657,2]
[345814881,1734496237325,-207.11586918,0.00024657,2]
[345814882,1734496237334,-456.09263396,0.00024657,6]
[345814884,1734496237344,-500.0,0.00024657,6]
[345814885,1734496237353,-500.0,0.00024657,6]
[345814886,1734496237363,-219.50895255,0.00024657,6]
[345814887,1734496237375,-1170.3352774,0.00024657,6]
[345814888,1734496237390,-202.22577005,0.00024657,6]
[345814890,1734496237399,-443.96708295,0.00024657,6]
[345814892,1734496237411,-56.03291705,0.00024657,6]
[345814894,1734496237421,-500.0,0.00024657,6]
[345814896,1734496237431,-500.0,0.00024657,6]
[345814897,1734496237440,-500.0,0.00024657,6]
[345814898,1734496237450,-500.0,0.00024657,6]
[345814900,1734496237459,-151.0,0.00024657,7]
[345814902,1734496237468,-157.74858,0.00024657,7]
[345814904,1734496237478,-500.0,0.00024657,6]
[345814905,1734496237487,-168.0,0.00024657,6]
[345814906,1734496237497,-1177.03,0.00024657,6]
[345814907,1734496237506,-500.0,0.00024657,6]
[345814909,1734496237520,-439.41324211,0.00024657,6]
[345814910,1734496237529,-500.0,0.00024657,6]
[345814912,1734496237539,-637.73,0.00024657,6]
[345814914,1734496237548,-500.0,0.00024657,6]
[345814916,1734496237558,-500.0,0.00024657,6]